fUSD/lending_fUSD_20240416
["ID","MTS","AMOUNT","RATE_DAILY","PERIOD"]
[322754431,1713247840651,-19949.10360306,0.000198,2]
[322754435,1713247840663,-298.4599086,0.000198,2]
[322754438,1713247840678,-2045.38201194,0.000198,2]
[322754442,1713247840691,-2549.52985763,0.000198,2]
[322754639,1713247843168,-18885.75128,0.000198,2]
[322754640,1713247843224,-400.97832488,0.000198,2]
[322754641,1713247843279,-1124.81695055,0.000198,2]
[322754642,1713247843335,-22601.10035523,0.000198,2]
[322754643,1713247843344,-11466.8745,0.000198,2]
[322754644,1713247843354,-1000.0,0.000198,2]
[322754645,1713247843363,-5692.0578,0.000198,2]
[322754646,1713247843372,-129912.3875,0.000198,2]
[322754647,1713247843382,-26187.2688,0.000198,2]
[322754648,1713247843391,-4866.7183,0.000198,2]
[322754649,1713247843401,-1184.28283046,0.00019807,2]
[322754650,1713247843410,-204.571546,0.00019839,2]
[322754651,1713247843420,-1000.0,0.00019839,2]
[322754652,1713247843430,-500.0,0.00019839,2]
[322754653,1713247843439,-316.72144454,0.00019857,2]
[322754654,1713247843449,-2075.88942386,0.0001988,2]
[322754655,1713247843458,-2703.0,0.00019882,2]
[322754656,1713247843468,-5887.0,0.00019882,2]
[322754657,1713247843477,-37645.0,0.00019882,2]
[322754658,1713247843487,-5723.0,0.00019882,2]
[322754659,1713247843497,-1054.0,0.00019882,2]
[322754660,1713247843508,-5159.74889931,0.00019882,2]
[322754661,1713247843517,-214.89282733,0.0001989,2]
[322754662,1713247843527,-7500.0,0.00019899,2]
[322754663,1713247843536,-213.0,0.000199,2]
[322754664,1713247843546,-245000.0,0.000199,2]
[322754665,1713247843557,-4464.32540681,0.000199,2]
[322754666,1713247843567,-151.55744571,0.000199,2]
[322754667,1713247843576,-187.13719515,0.000199,2]
[322754668,1713247843586,-262.94782375,0.000199,2]
[322754669,1713247843600,-155.43584172,0.000199,2]
[322754670,1713247843609,-1184.28283046,0.00019913,2]
[322754671,1713247843618,-151.55744549,0.00019917,2]
[322754672,1713247843629,-151.55744549,0.00019933,2]
[322754673,1713247843638,-151.55744549,0.0001995,2]
[322754674,1713247843647,-177.0,0.0001996,2]
[322754675,1713247843656,-151.55744549,0.00019967,2]
[322754676,1713247843665,-2075.88942386,0.00019974,2]
[322754677,1713247843675,-5159.74889931,0.00019976,2]
[322754678,1713247843685,-4464.32540673,0.00019982,2]
[322754679,1713247843695,-274.93,0.00019982,2]
[322754680,1713247843704,-151.55744549,0.00019983,2]
[322754681,1713247843713,-214.89282733,0.00019989,2]
[322754682,1713247843722,-214.89282733,0.0001999,2]
[322754683,1713247843731,-247.16447192,0.00019998,2]
[322754684,1713247843740,-500.0,0.00019998,2]
[322754685,1713247843750,-500.0,0.00019998,2]
[322754686,1713247843759,-500.0,0.00019998,2]
[322754687,1713247843767,-625.04612782,0.00019998,2]
[322754688,1713247843777,-765.0,0.00019999,2]
[322754689,1713247843786,-206.98170683,0.00019999,2]
[322754690,1713247843795,-4715.74373563,0.00019999,2]
[322754691,1713247843804,-512374.29255857,0.00019999,2]
[322754692,1713247843816,-308.19999983,0.00019999,2]
[322754693,1713247843827,-284.94999994,0.00019999,2]
[322754696,1713247846071,-858.72191135,0.00019999,2]
[322754697,1713247846275,-1152163.12016748,0.00019999,2]
[322754698,1713247846285,-468650.99786694,0.0002,2]
[322754699,1713247846297,-3637.4999995,0.0002,2]
[322754700,1713247846342,-1309.20092899,0.0002,2]
[322755575,1713247855864,32503.32292123,0.000165,2]
[322756343,1713248286538,241.74,0.00016865,2]
[322756344,1713248774474,229.65,0.00016832,2]
[322756363,1713249032176,-203.78155668,0.00018729,2]
[322756365,1713249032186,-440.91844332,0.0001873,2]
[322756368,1713249032197,-2650.78525012,0.0001873,2]
[322756426,1713249033015,-259.1,0.0001873,2]
[322756427,1713249033060,-287.37338502,0.0001873,2]
[322756428,1713249033074,-1974.06917962,0.0001873,2]
[322756429,1713249033085,-308.26142606,0.0001873,2]
[322756437,1713249038177,-897.42520888,0.0001873,2]
[322756438,1713249038236,-5495.45710698,0.0001873,2]
[322756439,1713249038246,-385.86,0.00018741,2]
[322756440,1713249038255,-250.0,0.00018744,2]
[322756441,1713249038264,-1806.95,0.00018803,2]
[322756442,1713249038274,-153.75,0.00018936,2]
[322756443,1713249038284,-153.75,0.00018998,2]
[322756444,1713249038293,-153.75,0.00019059,2]
[322756445,1713249038302,-229.65,0.00019096,2]
[322756446,1713249038311,-153.75,0.00019121,2]
[322756447,1713249038321,-499.99,0.00019121,2]
[322756448,1713249038330,-1000.0,0.00019152,2]
[322756449,1713249038339,-153.75,0.00019183,2]
[322756450,1713249038348,-153.75,0.00019244,2]
[322756451,1713249038357,-153.75,0.00019306,2]
[322756452,1713249038366,-153.75,0.00019368,2]
[322756453,1713249038375,-153.75,0.00019429,2]
[322756454,1713249038384,-412.51,0.00019444,2]
[322756455,1713249038393,-908.48,0.00019444,2]
[322756456,1713249038402,-908.48,0.00019444,2]
[322756457,1713249038411,-153.75,0.00019491,2]
[322756458,1713249038422,-3725.1276,0.000195,2]
[322756459,1713249038431,-153.75,0.00019553,2]
[322756460,1713249038441,-1000.0,0.00019599,2]
[322756461,1713249038451,-13207.65156797,0.000196,2]
[322756462,1713249038469,-1259.8,0.000196,2]
[322756463,1713249038526,-437.72289216,0.000196,2]
[322756465,1713249040161,-780.51986889,0.000196,2]
[322756466,1713249040411,-3180.11246733,0.000196,2]
[322756467,1713249040423,-81134.19320365,0.000196,2]
[322756468,1713249040434,-1000.0,0.000196,2]
[322756469,1713249040443,-967.0,0.000196,2]
[322756470,1713249040452,-153.75,0.00019614,2]
[322756471,1713249040462,-200.0,0.0001967,2]
[322756472,1713249040471,-153.75,0.00019676,2]
[322756473,1713249040480,-467.624619,0.00019726,2]
[322756474,1713249040490,-153.75,0.00019738,2]
[322756475,1713249040499,-500.0,0.0001978,2]
[322756476,1713249040508,-700.0,0.0001978,2]
[322756477,1713249040518,-500.0,0.0001978,2]
[322756478,1713249040527,-1037.94471193,0.00019799,2]
[322756479,1713249040536,-2579.8744497,0.00019799,2]
[322756480,1713249040545,-153.75,0.00019799,2]
[322756481,1713249040554,-213.0,0.000198,2]
[322756482,1713249040564,-364.0,0.000198,2]
[322756483,1713249040576,-1000.0,0.000198,2]
[322756484,1713249040586,-3000.0,0.000198,2]
[322756485,1713249040595,-740.17676909,0.000198,2]
[322756486,1713249040605,-317.17368964,0.000198,2]
[322756487,1713249040614,-1575.2411,0.000198,2]
[322756488,1713249040625,-1037.94471193,0.0001981,2]
[322756489,1713249040634,-2579.87444965,0.0001981,2]
[322756490,1713249040645,-740.17676903,0.00019814,2]
[322756491,1713249040654,-317.17368964,0.00019817,2]
[322756492,1713249040663,-1037.94471193,0.00019821,2]
[322756493,1713249040672,-2579.87444965,0.00019821,2]
[322756494,1713249040681,-740.17676903,0.00019829,2]
[322756495,1713249040692,-1037.94471193,0.00019833,2]
[322756496,1713249040702,-2579.87444965,0.00019833,2]
[322756497,1713249040711,-317.17368964,0.00019833,2]
[322756498,1713249040720,-1000.0,0.0001984,2]
[322756499,1713249040729,-500.0,0.0001984,2]
[322756500,1713249040740,-740.17676903,0.00019843,2]
[322756501,1713249040750,-1037.94471193,0.00019844,2]
[322756502,1713249040759,-2579.87444965,0.00019844,2]
[322756503,1713249040768,-317.17368964,0.0001985,2]
[322756504,1713249040777,-1037.94471193,0.00019855,2]
[322756505,1713249041026,-2579.87444965,0.00019855,2]
[322756506,1713249041041,-740.17676903,0.00019857,2]
[322756507,1713249041051,-153.75,0.00019861,2]
[322756508,1713249041060,-1037.94471193,0.00019866,2]
[322756509,1713249041073,-2579.87444965,0.00019866,2]
[322756510,1713249041082,-317.17368964,0.00019867,2]
[322756511,1713249041091,-740.17676903,0.00019871,2]
[322756512,1713249041101,-1037.94471193,0.00019878,2]
[322756513,1713249041110,-2579.87444965,0.00019878,2]
[322756514,1713249041119,-253.80147395,0.00019883,2]
[322756515,1713249041417,-63.37221569,0.00019883,2]
[322756516,1713249041427,-740.17676903,0.00019886,2]
[322756517,1713249041437,-1037.94471193,0.00019889,2]
[322756518,1713249041447,-2579.87444965,0.00019889,2]
[322756519,1713249041456,-156.93,0.0001989,2]
[322756520,1713249041466,-7500.0,0.00019899,2]
[322756521,1713249041475,-3365.0865988,0.00019899,2]
[322756522,1713249041512,-306.19,0.00019899,2]
[322756523,1713249041543,-48.99457353,0.00019899,2]
[322756524,1713249041552,-187.13719514,0.00019899,2]
[322756525,1713249041562,-109.57027082,0.00019899,2]
[322756526,1713249041576,-700.0,0.00019899,2]
[322756527,1713249041588,-2910.70090145,0.00019899,2]
[322756528,1713249041598,-3720.27117227,0.00019899,2]
[322756529,1713249041608,-3720.27117227,0.00019899,2]
[322756530,1713249041617,-3720.27117227,0.00019899,2]
[322756531,1713249041627,-3720.27117227,0.00019899,2]
[322756532,1713249041636,-187.13719514,0.000199,2]
[322756533,1713249041645,-3720.27117227,0.000199,2]
[322756534,1713249041655,-3720.27117227,0.000199,2]
[322756535,1713249041664,-3720.27117227,0.000199,2]
[322756536,1713249041673,-3720.27117227,0.000199,2]
[322756537,1713249041682,-3720.27117227,0.000199,2]
[322756538,1713249041691,-500.0,0.000199,2]
[322756539,1713249041701,-7156.80490927,0.000199,2]
[322756557,1713249043475,-327.29498152,0.000199,2]
[322756558,1713249043616,-2538.0427046,0.000199,2]
[322756559,1713249043635,-927.08622596,0.000199,2]
[322756560,1713249043647,-1536.75,0.000199,2]
[322756561,1713249043658,-4037.77387647,0.000199,2]
[322756562,1713249043691,-63169.09710947,0.000199,2]
[322756563,1713249043702,-1347.14250301,0.000199,2]
[322756591,1713249046458,-163960.0076897,0.000199,2]
[322756593,1713249046468,-250.0,0.000199,2]
[322756595,1713249046478,-3720.27117227,0.000199,2]
[322756597,1713249046487,-187.13719514,0.000199,2]
[322756599,1713249046497,-151.55744549,0.000199,2]
[322756601,1713249046506,-1037.94471193,0.000199,2]
[322756603,1713249046516,-2579.87444965,0.000199,2]
[322756605,1713249046525,-1000.0,0.000199,2]
[322756607,1713249046535,-10000.0,0.000199,2]
[322756609,1713249046544,-740.17676903,0.000199,2]
[322756611,1713249046554,-317.17368964,0.000199,2]
[322756613,1713249046563,-10652.89233062,0.000199,2]
[322756615,1713249046573,-151.55744549,0.00019905,2]
[322756618,1713249046586,-151.55744549,0.0001991,2]
[322756620,1713249046595,-151.55744549,0.00019916,2]
[322756622,1713249046605,-300.0,0.00019918,2]
[322756624,1713249046614,-151.55744549,0.00019921,2]
[322756625,1713249046624,-153.75,0.00019923,2]
[322756628,1713249046634,-151.55744549,0.00019927,2]
[322756629,1713249046643,-151.55744549,0.00019932,2]
[322756632,1713249046653,-151.55744549,0.00019938,2]
[322756633,1713249046662,-151.55744549,0.00019944,2]
[322756634,1713249046672,-151.55744549,0.00019949,2]
[322756635,1713249046682,-151.55744549,0.00019955,2]
[322756636,1713249046691,-180.0,0.0001996,2]
[322756637,1713249046700,-151.55744549,0.0001996,2]
[322756638,1713249046709,-151.55744549,0.00019966,2]
[322756639,1713249046719,-151.55744549,0.00019971,2]
[322756640,1713249046728,-151.55744549,0.00019977,2]
[322756641,1713249046737,-151.55744549,0.00019983,2]
[322756642,1713249046745,-156.93,0.00019988,2]
[322756643,1713249046754,-156.93,0.00019988,2]
[322756644,1713249046764,-151.55744549,0.00019988,2]
[322756645,1713249046773,-156.93,0.00019989,2]
[322756646,1713249046782,-156.93,0.00019989,2]
[322756647,1713249046791,-156.93,0.00019989,2]
[322756648,1713249046800,-156.93,0.00019989,2]
[322756649,1713249047047,-156.93,0.00019989,2]
[322756650,1713249047057,-151.55744549,0.00019994,2]
[322756651,1713249047066,-155.23224713,0.00019997,2]
[322756652,1713249047076,-96927.47613255,0.00019998,2]
[322756653,1713249047085,-89651.5573533,0.00019998,2]
[322756654,1713249047095,-113635.4378521,0.00019998,2]
[322756655,1713249047104,-13984.3711226,0.00019998,2]
[322756656,1713249047114,-6147.6370941,0.00019998,2]
[322756657,1713249047123,-637.0,0.00019999,2]
[322756658,1713249047132,-3004.56465305,0.00019999,2]
[322756659,1713249047141,-1665989.28463717,0.00019999,2]
[322756660,1713249047151,-326.3705,0.00019999,2]
[322756661,1713249047160,-5901.58423437,0.00019999,2]
[322756662,1713249047212,-632.96859625,0.00019999,2]
[322756664,1713249256537,227.43,0.00017091,2]
[322756665,1713249725912,216.05,0.00016822,2]
[322756666,1713250212549,205.24,0.00016634,2]
[322756682,1713250232464,-203.78155668,0.00018512,2]
[322756683,1713250232473,-161.47439017,0.00018513,2]
[322756684,1713250232482,-923.38755257,0.00018603,2]
[322756685,1713250232497,-501.58244743,0.00018603,2]
[322756686,1713250232506,-1203.62,0.00018613,2]
[322756687,1713250232515,-495.16,0.00018637,2]
[322756688,1713250232524,-362.01,0.00018648,2]
[322756689,1713250232533,-1000.0,0.00018676,2]
[322756690,1713250232543,-406.54720701,0.00018692,2]
[322756691,1713250232552,-283.19,0.00018694,2]
[322756692,1713250232561,-178.33,0.00018753,2]
[322756693,1713250232571,-205.24,0.00018898,2]
[322756694,1713250232579,-839.4694,0.000189,2]
[322756695,1713250232589,-2833.71,0.000189,2]
[322756696,1713250232599,-150.0,0.00018904,2]
[322756697,1713250232608,-150.0,0.00018933,2]
[322756698,1713250232617,-157.04,0.00018934,2]
[322756699,1713250232627,-2546.92,0.00018934,2]
[322756700,1713250232636,-167.34,0.00018947,2]
[322756701,1713250232645,-1550.0,0.00019,3]
[322756702,1713250232655,-499.99,0.00019052,2]
[322756703,1713250232664,-3400.0,0.000196,2]
[322756704,1713250232674,-420.862157,0.00019726,2]
[322756705,1713250232683,-700.0,0.0001978,2]
[322756706,1713250232692,-500.0,0.0001978,2]
[322756707,1713250232702,-500.0,0.0001978,2]
[322756708,1713250232711,-7096.5172,0.00019791,2]
[322756709,1713250232722,-100000.0,0.00019799,2]
[322756710,1713250232730,-648.38256232,0.000198,2]
[322756711,1713250232766,-1432.26,0.000198,2]
[322756712,1713250232781,-1465.86872755,0.000198,2]
[322756713,1713250232792,-818.3624996,0.000198,2]
[322756714,1713250232804,-2285.28828624,0.000198,2]
[322756716,1713250232891,-267.23393513,0.000198,2]
[322756717,1713250232909,-534.74932557,0.000198,2]
[322756718,1713250232921,-20239.20046359,0.000198,2]
[322756719,1713250232930,-1000.0,0.000198,2]
[322756720,1713250233202,-161.47439017,0.000198,2]
[322756721,1713250233212,-7500.0,0.000198,2]
[322756722,1713250233222,-3307.16509004,0.00019809,2]
[322756723,1713250233231,-203.091419,0.0001984,2]
[322756724,1713250233244,-1000.0,0.0001984,2]
[322756725,1713250233254,-500.0,0.0001984,2]
[322756726,1713250233263,-8088.9778,0.00019891,2]
[322756727,1713250233275,-523.42192072,0.00019898,2]
[322756728,1713250233285,-236.11623643,0.00019899,2]
[322756729,1713250233294,-580.0,0.000199,2]
[322756730,1713250233304,-1000.0,0.000199,2]
[322756731,1713250233314,-2101.13139674,0.000199,2]
[322756735,1713250238652,-947.265,0.000199,2]
[322756736,1713250238664,-825.8537264,0.000199,2]
[322756737,1713250238712,-406.87160468,0.000199,2]
[322756738,1713250238899,-3478.42757392,0.000199,2]
[322756739,1713250238911,-885.30001992,0.000199,2]
[322756793,1713250240467,-524.76383961,0.000199,2]
[322756794,1713250240487,-461.722079,0.000199,2]
[322756795,1713250240502,-319.23200535,0.000199,2]
[322756796,1713250240514,-49.43275438,0.000199,2]
[322756797,1713250240524,-212.7343,0.000199,2]
[322756798,1713250240534,-364.42461325,0.000199,2]
[322756799,1713250241078,-635.57538675,0.000199,2]
[322756800,1713250241087,-973.03572791,0.000199,2]
[322756801,1713250241099,-44493.56741515,0.000199,2]
[322756802,1713250241120,-361.28742736,0.000199,2]
[322756819,1713250243562,-547.73598015,0.000199,2]
[322756820,1713250243914,-4589.59414908,0.000199,2]
[322756828,1713250246800,-298.341449,0.000199,2]
[322756829,1713250246812,-846.3010205,0.000199,2]
[322756834,1713250318034,9660.9787054,6.94e-05,2]
[322756835,1713250351209,7692.26527877,0.00028,30]
[322756842,1713250674630,206.14,0.00017142,2]
[322756843,1713250727256,288.19591373,0.00017142,2]
[322756844,1713250728617,42559.14955139,0.00017142,2]
[322756845,1713250731047,7494.03540754,0.00017142,2]
[322756846,1713250731089,1373.23431249,0.00017142,2]
[322756847,1713250732331,19659.47289804,0.00017142,2]
[322756848,1713250733235,865.63697681,0.00017142,2]
[322756849,1713250733263,20154.43535969,0.00017142,2]
[322756850,1713250734765,179.5050471,0.00017142,2]
[322756851,1713250735863,408.16405937,0.00017142,2]
[322756852,1713250737031,952.97709067,0.00016285,2]
[322756853,1713250737350,1470.43091152,0.00017142,2]
[322756854,1713250737497,1035.52607633,0.00017142,2]
[322756855,1713250742607,42559.14955139,0.00017142,2]
[322756856,1713250745059,7494.03540754,0.00017142,2]
[322756857,1713250746336,18961.62771485,0.00017142,2]
[322756858,1713250747056,1373.23431249,0.00017142,2]
[322756859,1713250749244,865.63697681,0.00017142,2]
[322756860,1713250749280,288.19591373,0.00017142,2]
[322756861,1713250751235,20154.43535969,0.00017142,2]
[322756863,1713250751867,261.53665019,0.00017142,2]
[322756864,1713250752751,244.30702182,0.00017142,2]
[322756865,1713250752909,226.75739712,0.00016285,2]
[322756866,1713250753490,1035.52607633,0.00017142,2]
[322756867,1713250755348,1470.43091152,0.00017142,2]
[322756868,1713250760629,42559.14955139,0.00017142,2]
[322756869,1713250769092,1373.23431249,0.00017142,2]
[322756870,1713250769253,288.19591373,0.00017142,2]
[322756871,1713250771086,7494.03540754,0.00017142,2]
[322756872,1713250771248,865.63697681,0.00017142,2]
[322756873,1713250775242,289.34673529,0.00017142,2]
[322756874,1713250775357,1470.43091152,0.00017142,2]
[322756875,1713250776636,14296.28678985,0.00017142,2]
[322756876,1713250777491,1035.52607633,0.00017142,2]
[322756877,1713250787240,865.63697681,0.00017142,2]
[322756878,1713250787270,288.19591373,0.00017142,2]
[322756879,1713250789072,1373.23431249,0.00017142,2]
[322756880,1713250795059,7494.03540754,0.00017142,2]
[322756881,1713250795354,190.08098445,0.00017142,2]
[322756882,1713250799498,1035.52607633,0.00017142,2]
[322756883,1713250803268,270.50823107,0.00017142,2]
[322756884,1713250805256,340.01548031,0.00017142,2]
[322756885,1713250806003,1373.23431249,0.00017142,2]
[322756886,1713250813057,6272.21770038,0.00017142,2]
[322756887,1713250819803,1035.52607633,0.00017142,2]
[322756888,1713250823137,448.62637731,0.00017142,2]
[322756889,1713250830436,155.0,0.00017908,2]
[322756890,1713250835491,1035.52607633,0.00017142,2]
[322756891,1713250850268,183.81215809,0.00017908,2]
[322756892,1713250859507,543.02166452,0.00017142,2]
[322756893,1713250950250,319.55959285,0.00017142,2]
[322756895,1713250968264,319.55959285,0.00017142,2]
[322756896,1713250994277,319.55959285,0.00017142,2]
[322756897,1713251012253,319.55959285,0.00017142,2]
[322756898,1713251013113,157.13,0.00014713,2]
[322756899,1713251025098,170.24,0.00014713,2]
[322756901,1713251052264,339.31473495,0.00017142,2]
[322756902,1713251093641,238.11157066,0.00028,30]
[322756903,1713251105431,9231.647778,0.00017941,2]
[322756904,1713251124953,2484.95431424,0.00017933,2]
[322756905,1713251132771,865.94657561,0.00017933,2]
[322756906,1713251144101,195.83,0.00016749,2]
[322756907,1713251159174,178.64016808,0.00017931,2]
[322756908,1713251250897,171.12,0.00016712,2]
[322756909,1713251256731,189.10394885,0.00017926,2]
[322756910,1713251426721,186.96765978,0.00017914,2]
[322756940,1713251431967,-203.78155668,0.00018013,2]
[322756941,1713251431976,-297.98574496,0.00018014,2]
[322756944,1713251432010,-309.91010833,0.00018014,2]
[322756946,1713251432019,-155.0,0.00018014,2]
[322756948,1713251432028,-551.55355935,0.00018015,2]
[322756950,1713251432038,-276.71633232,0.00018015,2]
[322756951,1713251432053,-759.516,0.00018015,2]
[322756953,1713251432064,-480.6424,0.00018015,2]
[322756957,1713251432090,-419.52,0.00018015,2]
[322757011,1713251437615,-307.71895302,0.00018012,2]
[322757013,1713251437639,-243.83460633,0.00018012,2]
[322757014,1713251437649,-72.84039367,0.00018015,2]
[322757015,1713251437701,-656.90000005,0.00018015,2]
[322757016,1713251437838,-3913.3677836,0.00018015,2]
[322757189,1713251439692,-3715.14226581,0.00018015,2]
[322757191,1713251439703,-1368.76,0.00018016,2]
[322757193,1713251439712,-419.52,0.00018022,2]
[322757195,1713251439721,-150.0,0.00018258,2]
[322757197,1713251439730,-500.0,0.00018262,2]
[322757199,1713251439739,-378.775941,0.00018356,2]
[322757201,1713251439748,-500.0,0.00018531,2]
[322757203,1713251439757,-189.10394884,0.00018601,2]
[322757205,1713251439766,-200.0,0.00018613,2]
[322757207,1713251439775,-992.45,0.00018619,2]
[322757208,1713251439784,-3052.61,0.00018629,2]
[322757210,1713251439793,-801.74,0.00018663,2]
[322757212,1713251439802,-150.0,0.00018699,2]
[322757214,1713251439811,-300.0,0.00018699,2]
[322757216,1713251439820,-16501.22295216,0.000187,2]
[322757285,1713251440453,-35284.18522708,0.000187,2]
[322757522,1713251442734,-2599.63704,0.000187,2]
[322757524,1713251442745,-104755.78215547,0.000187,2]
[322757526,1713251442754,-116751.85721195,0.00018701,2]
[322757531,1713251442791,-64432.23389205,0.00018701,2]
[322757533,1713251442801,-172339.27291966,0.00018888,2]
[322757535,1713251442810,-802.894,0.000189,2]
[322757537,1713251442819,-3159.87967817,0.00018903,2]
[322757539,1713251442829,-499.99,0.00018903,2]
[322757541,1713251442838,-1550.0,0.00019,3]
[322757543,1713251442847,-195.83,0.00019013,2]
[322757545,1713251442857,-1000.0,0.00019092,2]
[322757546,1713251442867,-379.966824,0.00019098,2]
[322757548,1713251442876,-311.81,0.00019099,2]
[322757550,1713251442886,-394.63,0.00019178,2]
[322757552,1713251442895,-378.775941,0.00019178,2]
[322757553,1713251442904,-164.92,0.00019304,2]
[322757555,1713251442913,-271.60165932,0.000197,2]
[322757557,1713251442923,-271.60165931,0.0001975,2]
[322757559,1713251442932,-500.0,0.0001978,2]
[322757561,1713251442941,-600.0,0.0001978,2]
[322757563,1713251442949,-7500.0,0.00019799,2]
[322757564,1713251442961,-6000.10292526,0.00019799,2]
[322757566,1713251442971,-100000.0,0.000198,2]
[322757568,1713251442981,-1000.0,0.000198,2]
[322757570,1713251442992,-245000.0,0.000198,2]
[322757572,1713251443001,-187.37975135,0.000198,2]
[322757573,1713251443010,-271.60165931,0.000198,2]
[322757575,1713251443020,-461.894,0.00019821,2]
[322757577,1713251443029,-1000.0,0.0001984,2]
[322757579,1713251443038,-500.0,0.0001984,2]
[322757581,1713251443047,-371.0,0.0001989,2]
[322757583,1713251443056,-541.0,0.00019897,2]
[322757585,1713251443065,-1254.0,0.00019897,2]
[322757586,1713251443074,-1228.0,0.00019897,2]
[322757588,1713251443083,-280.0,0.00019897,2]
[322757590,1713251443093,-609.0,0.00019897,2]
[322757592,1713251443102,-1949.0,0.00019897,2]
[322757594,1713251443111,-807.0,0.00019897,2]
[322757595,1713251443120,-436.0,0.00019897,2]
[322757597,1713251443130,-399.0,0.00019897,2]
[322757599,1713251443140,-3078.0,0.00019897,2]
[322757601,1713251443149,-1472.0,0.00019897,2]
[322757603,1713251443158,-150.0,0.00019897,2]
[322757605,1713251443167,-2442.0,0.00019897,2]
[322757606,1713251443176,-1638.0,0.00019897,2]
[322757608,1713251443185,-150.0,0.00019897,2]
[322757610,1713251443194,-214.0,0.00019897,2]
[322757612,1713251443205,-355.0,0.00019897,2]
[322757614,1713251443214,-443.0,0.00019897,2]
[322757616,1713251443223,-193.77485687,0.00019898,2]
[322757617,1713251443231,-162.42247467,0.00019898,2]
[322757619,1713251443241,-209.88513691,0.00019898,2]
[322757621,1713251443250,-1042.21968617,0.00019898,2]
[322757623,1713251443259,-1000.0,0.00019899,2]
[322757625,1713251443268,-10000.0,0.00019899,2]
[322757627,1713251443276,-32248.23120799,0.00019899,2]
[322757628,1713251443285,-477.38442285,0.000199,2]
[322757630,1713251443295,-250000.0,0.000199,2]
[322757632,1713251443304,-341195.80638827,0.000199,2]
[322757634,1713251443316,-1092.59470012,0.000199,2]
[322757640,1713251443364,-744.46205974,0.000199,2]
[322757643,1713251443375,-1987.83994364,0.000199,2]
[322757651,1713251443420,-325.09413522,0.000199,2]
[322757660,1713251443506,-926.12701985,0.000199,2]
[322757824,1713251445735,-203.78155668,0.00019898,2]
[322757825,1713251445744,-120.45624204,0.00019898,2]
[322757826,1713251445755,-80.48529293,0.00019898,2]
[322757827,1713251445764,-30960.4760575,0.000199,2]
[322757828,1713251445776,-550.51590628,0.000199,2]
[322757829,1713251445845,-951.53815668,0.000199,2]
[322757830,1713251445856,-1342.41583641,0.000199,2]
[322757831,1713251445868,-3167.35587738,0.000199,2]
[322757832,1713251446407,-255.0,0.000199,2]
[322757833,1713251446426,-1006.8,0.000199,2]
[322757834,1713251446437,-605.12519976,0.000199,2]
[322757838,1713251457115,500.0,0.00018,2]
[322757840,1713251459991,11723.94201645,0.00028,30]
[322757841,1713251462027,300.0,0.00017916,2]
[322757843,1713251479656,157.041616,0.00028,30]
[322757845,1713251484651,157.041616,0.00028,30]
[322757846,1713251485949,157.041616,0.00028,30]
[322757847,1713251487142,157.041616,0.00028,30]
[322757849,1713251502213,157.041616,0.00028,30]
[322757850,1713251503368,157.041616,0.00028,30]
[322757851,1713251520155,3015.5637,0.00017917,2]
[322757852,1713251528045,157.041616,0.00028,30]
[322757853,1713251528908,157.041616,0.00028,30]
[322757854,1713251529622,157.041616,0.00028,30]
[322757855,1713251530444,157.041616,0.00028,30]
[322757856,1713251542660,170.07,0.00015313,2]
[322757857,1713251545614,157.041616,0.00028,30]
[322757858,1713251648516,300.0,0.00028,30]
[322757859,1713251657266,70000.0,0.00028,30]
[322757860,1713251709627,223.46,0.00016872,2]
[322757861,1713251727246,150.0,0.00028,30]
[322757862,1713251744347,-936.0,0.00018261,2]
[322757863,1713251744367,-203.78155668,0.00018261,2]